Cogmind - Beta 15 @@@ ROGUE MODE // 2025.07.18 @ 10:05:08 Player: beans Result: Destroyed by G-34 Mercenary with Small Laser Performance ------------- Evolutions (1) 500 Regions Visited (3) 600 Robots Destroyed (61) 305 Value Destroyed (1559) 1559 Prototype IDs (4) 80 Alien Tech Used (0) 0 Bonus (100) 100 TOTAL SCORE: 3144 Bonus ------- High Alert Combat Kills 100 Cogmind --------- Core Integrity 0/400 Matter 182/300 Energy 280/280 System Corruption 0% Temperature Hot (240) Movement Core (100) Ox1 Location -9/Storage Parts ------- > --- POWER (1) -------- Heavy Ion Engine > --- PROPULSION (2) --- (None) > --- UTILITY (4) ------ Weight Redist. System Targeting Computer Improved Targeting Computer > --- WEAPON (2) ------- Advanced Beam Cannon > --- INVENTORY (5) ---- Light Treads Improved Assault Rifle Improved Light Cannon Mini Grenade Launcher Peak State ------------ > --- POWER ------------ Light Nuclear Core > --- PROPULSION ------- Improved Flight Unit > --- UTILITY ---------- Heat Sink Weight Redist. System Targeting Computer Targeting Computer > --- WEAPON ----------- Advanced Beam Cannon Advanced Beam Cannon > --- INVENTORY -------- Light Treads Backup Plating I Assault Rifle Improved Assault Rifle Improved Light Cannon [Rating: 17] Favorites ----------- Power Ion Engine Engine Ion Engine Power Core Light Nuclear Core Propulsion Light Treads Treads Light Treads Flight Unit Improved Flight Unit Utility Targeting Computer Device Weight Redist. System Processor Targeting Computer Protection Backup Plating I Weapon Assault Rifle Energy Gun Heavy EM Pulse Gun Energy Cannon Advanced Beam Cannon Ballistic Gun Assault Rifle Ballistic Cannon Improved Light Cannon Launcher Mini Grenade Launcher Build | -11 -10 -9 -9 ------- Run | Yrd Mat Mat Sto Slots Evolved 2 | . . 2 . Power . | . . . . Propulsion . | . . . . Utility 2 | . . 2 . Weapon . | . . . . Parts Attached 31 | 4 3 23 1 Power 5 | 1 . 4 . Engine 4 | 1 . 3 . Core 1 | . . 1 . Reactor . | . . . . Propulsion 5 | 2 . 3 . Treads 2 | 2 . . . Leg . | . . . . Wheel . | . . . . Hover . | . . . . Flight 3 | . . 3 . Utility 9 | . 2 7 . Device 4 | . . 4 . Storage . | . . . . Processor 4 | . 2 2 . Hackware . | . . . . Protection 1 | . . 1 . Artifact . | . . . . Weapon 12 | 1 1 9 1 Energy Gun 1 | . . 1 . Energy Cannon 3 | . . 2 1 Ballistic Gun 4 | 1 . 3 . Ballistic Cannon 2 | . . 2 . Launcher 2 | . 1 1 . Special Weapon . | . . . . Impact Weapon . | . . . . Slashing Weapon . | . . . . Piercing Weapon . | . . . . Special Melee Weapon . | . . . . Unidentified Prototypes 4 | . . 4 . Parts Lost 11 | . 2 7 2 Power 1 | . . 1 . Propulsion 2 | . . 2 . Utility 4 | . 1 2 1 Weapon 4 | . 1 2 1 Highest Loss Streak 3 | . 2 3 2 To Critical Strikes . | . . . . Average Backups 2 | . . 3 4 Power . | . . . . Propulsion . | . . . 1 Utility . | . . . . Weapon 1 | . . 2 3 Tool/Special . | . . . . Unused Backups . | . . . . Power . | . . . . Propulsion . | . . . . Utility . | . . . . Weapon . | . . . . Tool/Special . | . . . . Average Slot Usage (%) 68 | . 71 66 75 Engine 9 | . 14 7 11 Treads 8 | . 28 4 . Flight 6 | . . 9 . Device 6 | . . 7 11 Processor 15 | . 2 17 22 Protection 2 | . . 2 10 Energy Cannon 3 | . . 3 8 Ballistic Gun 6 | . 14 4 . Ballistic Cannon 3 | . . 3 9 Launcher 4 | . 11 3 2 Peak Build Rating 17 | 4 6 17 14 Average Rating 9 | 2 5 10 13 On Entrance 5 | . 4 5 13 Naked Turns . | . . . . Heaviest Build 17 | 7 10 14 17 Greatest Support 40 | 40 40 40 9 Greatest Overweight (x) 2 | 2 . 2 1 Average Overweight (x) . | . . . 1 Largest Inventory Capacity 5 | 5 5 5 5 Average Capacity 5 | 5 5 5 5 Most Carried 5 | 2 2 5 4 Average Carried 3 | . . 3 4 Final Capacity 5 | 5 5 5 5 Final Carried 4 | . . 4 4 Class Distribution -------------------- 100% | Mutant Dominant Class ---------------- Mutant | -10/Materials Mutant | -9/Materials Mutant | -9/Storage Resources | -11 -10 -9 -9 ----------- Run | Yrd Mat Mat Sto Matter Collected 1251 | 173 243 835 . Remotely . | . . . . Salvage Created 1875 | . 161 1626 88 Parts 117 | . 21 93 3 Haulers Intercepted 6 | . 1 5 . Recyclers Shooed 1 | . . 1 . Parts Field Recycled . | . . . . Retrieved Matter . | . . . . Parts Self-Destructed . | . . . . Prevented . | . . . . Kills | -11 -10 -9 -9 ------- Run | Yrd Mat Mat Sto Combat Hostiles Destroyed 41 | . 7 32 2 Guns 13 | . 3 10 . Cannons 16 | . . 14 2 AOE 12 | . 4 8 . Classes Destroyed 11 | . 6 5 . Worker 4 | . 1 3 . Builder 1 | . . 1 . Tunneler 2 | . 1 1 . Hauler 6 | . 1 5 . Recycler 3 | . . 3 . Watcher 4 | . 1 3 . Swarmer 8 | . 6 2 . Grunt 23 | . 1 20 2 Brawler 2 | . . 2 . Duelist 1 | . . 1 . Sentry 7 | . . 7 . Best Kill Streak 7 | . 4 7 2 Combat Bots Only 6 | . 3 6 2 Max Kills in Single Turn 2 | . 2 2 1 Gunslinging . | . . . . Exploded 2 | . 1 2 . Melee . | . . . . Uniques/NPCs Destroyed . | . . . . Combat | -11 -10 -9 -9 -------- Run | Yrd Mat Mat Sto Hostile Shots Fired 196 | . 54 130 12 Missed 65 | . 15 45 5 Hits 131 | . 39 85 7 Projectile 131 | . 39 85 7 Critical Strikes 3 | . . 3 . Damage Taken 1650 | . 402 1169 79 Core 463 | . 57 384 22 Absorbed by Shields . | . . . . Core Remaining (%) 88 | 100 77 . . Volleys Fired 195 | . 23 157 15 Largest 2 | . 2 2 1 Hottest 91 | . 50 91 68 Shots Fired 258 | . 33 210 15 Gun 108 | . 23 85 . Cannon 104 | . . 89 15 Launcher 46 | . 10 36 . Special . | . . . . Kinetic 117 | . 23 91 3 Thermal 71 | . . 59 12 Explosive 46 | . 10 36 . Electromagnetic 24 | . . 24 . Robot Hit Streak 10 | . 2 10 7 Robot Miss Streak 5 | . 3 5 1 Penetration Max . | . . . . Secondary Targets . | . . . . Shots Hit Robots 127 | . 9 109 9 Core Hits 82 | . 14 65 3 Critical Kills . | . . . . Critical Parts Destroyed . | . . . . Critical Strikes . | . . . . Melee Attacks . | . . . . Impact . | . . . . Slashing . | . . . . Piercing . | . . . . Sneak Attacks . | . . . . Combat Hostiles . | . . . . Follow-up Attacks . | . . . . Damage Inflicted 4108 | . 503 3419 186 Guns 893 | . 157 736 . Cannons 1276 | . . 1090 186 Explosions 1935 | . 342 1593 . Melee . | . . . . Ramming 4 | . 4 . . Kinetic 1019 | . 157 862 . Thermal 967 | . . 781 186 Explosive 1934 | . 342 1592 . Electromagnetic 184 | . . 184 . Impact . | . . . . Slashing . | . . . . Piercing . | . . . . Highest Corruption . | . . . . Average Corruption . | . . . . Corruption Purged . | . . . . Corruption Blocked . | . . . . Overload Shots . | . . . . Overflow Damage 33 | . 12 21 . Projectiles . | . . . . Explosions 33 | . 12 21 . Melee . | . . . . Knockbacks 2 | . . 2 . Impact . | . . . . Kinetic 2 | . . 2 . Secondary . | . . . . Self-Inflicted Damage 89 | . 22 67 . Shots 5 | . 1 4 . Rammed 3 | . 3 . . Targets Rammed 3 | . 3 . . Kicked . | . . . . Crushed . | . . . . Highest Temperature 335 | . 2 335 234 Average Temperature 63 | . 2 60 86 Received Heat Transfer 666 | . 132 489 45 Effects 1 | . . 1 . Energy Bleed 1 | . . 1 . Siege Activations . | . . . . Martial Activations . | . . . . Shielding Activations . | . . . . Robots Disrupted . | . . . . Combat Hostiles . | . . . . Robots Corrupted . | . . . . Combat Hostiles . | . . . . Parts Fried 3 | . . 3 . Impact Corruptions . | . . . . Robots Melted . | . . . . Combat Hostiles . | . . . . Parts Melted 3 | . . 3 . Heat Transferred 1789 | . . 1456 333 Parts Sabotaged . | . . . . Parts Stolen . | . . . . Parts Stripped . | . . . . Power Chain Reactions . | . . . . Alert | -11 -10 -9 -9 ------- Run | Yrd Mat Mat Sto Maximum Alert Level 3 | . . 3 1 Low Security (%) 60 | 100 100 55 . Level 1 22 | . . 20 100 Level 2 15 | . . 22 . Level 3 1 | . . 2 . Level 4 . | . . . . Level 5 . | . . . . High Security . | . . . . Max Security . | . . . . Peak Influence 733 | . 134 733 323 Initial 307 | . . 18 307 Average 197 | . 53 236 284 Influence Increases 1621 | . 297 1258 66 Destroy 0b10 Robot/C 820 | . 140 640 40 Destroy 0b10 Robot/NC 100 | . 20 80 . Destroy Leader 220 | . 34 176 10 Successful Hack 7 | . 7 . . Disable Machine 180 | . 30 135 15 Destroy Structure 234 | . 66 167 1 Lose Combat Pursuer 60 | . . 60 . Influence Decreases 1348 | . 251 575 522 Entered New Map 450 | . . 28 422 Time Decay 684 | . 127 477 80 Lost Part 110 | . 20 70 20 Purge Threat 104 | . 104 . . Squads Dispatched 7 | . 2 4 1 Investigation 2 | . 1 1 . Extermination . | . . . . Reinforcement 5 | . 1 3 1 Assault . | . . . . Garrison . | . . . . Intercept . | . . . . Searches Triggered . | . . . . Construction Impeded 1 | . . 1 . Haulers Reinforced . | . . . . Active Scanning Responses . | . . . . Cargo Convoy Interrupts . | . . . . Stealth | -11 -10 -9 -9 --------- Run | Yrd Mat Mat Sto Distress Signals 4 | . 3 1 . Communications Jammed . | . . . . Distress Signals . | . . . . Times Spotted 66 | . 12 50 4 Peak Tracking Total 6 | . 3 6 4 Tactical Retreats 4 | . . 4 . Traps | -11 -10 -9 -9 ------- Run | Yrd Mat Mat Sto Traps Triggered 5 | . 1 4 . Indirectly . | . . . . Trap Hack Attempts . | . . . . Triggered . | . . . . Disarmed . | . . . . Reprogrammed . | . . . . Reused . | . . . . Traps Extracted . | . . . . Installed . | . . . . Triggered . | . . . . Machines | -11 -10 -9 -9 ---------- Run | Yrd Mat Mat Sto Machines Disabled 12 | . 2 9 1 Max in Single Turn 2 | . 1 2 1 Machines Repaired . | . . . . Machines Dismantled . | . . . . Machines Sabotaged . | . . . . Overloaded Fab Kills . | . . . . Hacking | -11 -10 -9 -9 --------- Run | Yrd Mat Mat Sto Machines Accessed 3 | . 2 1 . Terminals 2 | . 2 . . Fabricators . | . . . . Repair Stations 1 | . . 1 . Recycling Units . | . . . . Scanalyzers . | . . . . Garrison Access . | . . . . Total Hacks 8 | . 7 1 . Successful 4 | . 3 1 . Failed 4 | . 4 . . Catastrophic . | . . . . Database Lockouts . | . . . . Manual . | . . . . Terminals 7 | . 7 . . Fabricators . | . . . . Repair Stations 1 | . . 1 . Recycling Units . | . . . . Scanalyzers . | . . . . Garrison Access . | . . . . Terminal Hacks 3 | . 3 . . Unreport Threat 2 | . 2 . . Hauler Manifests 1 | . 1 . . Fabricator Hacks . | . . . . Repair Station Hacks 1 | . . 1 . Refit 1 | . . 1 . Recycling Unit Hacks . | . . . . Scanalyzer . | . . . . Garrison Access Hacks . | . . . . Unauthorized Hacks . | . . . . Terminals . | . . . . Fabricators . | . . . . Repair Stations . | . . . . Recycling Units . | . . . . Scanalyzers . | . . . . Garrison Access . | . . . . Data Cores Recovered . | . . . . Used . | . . . . Hacking Detections 2 | . 2 . . Full Trace Events . | . . . . Feedback Events . | . . . . Feedback Blocked . | . . . . Robot Schematics Acquired . | . . . . Robots Built . | . . . . Authchips . | . . . . Time . | . . . . Total Robot Build Rating . | . . . . Part Schematics Acquired . | . . . . Parts Built . | . . . . Authchips . | . . . . Time . | . . . . Total Part Build Rating . | . . . . Parts Repaired . | . . . . Time . | . . . . Parts Recycled . | . . . . Recycled Matter . | . . . . Retrieved Matter . | . . . . Retrieved Components . | . . . . Parts Scanalyzed . | . . . . Part Schematics Acquired . | . . . . Parts Damaged . | . . . . Bothacking | -11 -10 -9 -9 ------------ Run | Yrd Mat Mat Sto Used RIF Installer . | . . . . Robots Hacked . | . . . . Non-combat . | . . . . Combat . | . . . . Robot Hacks Applied . | . . . . Relay Couplers Released . | . . . . Fabnet Peak Effective % . | . . . . Robots Rewired . | . . . . Allies Hacked . | . . . . Hacks Repelled . | . . . . Allies | -11 -10 -9 -9 -------- Run | Yrd Mat Mat Sto Total Allies . | . . . . Largest Group . | . . . . Highest-Rated Group . | . . . . Highest-Rated Ally . | . . . . Total Orders . | . . . . Ally Attacks . | . . . . Total Damage . | . . . . Kills . | . . . . Allies Corrupted . | . . . . Allies Melted . | . . . . Intel | -11 -10 -9 -9 ------- Run | Yrd Mat Mat Sto Active Infowar (turns) . | . . . . Robot Analysis Total . | . . . . Derelict Logs Recovered . | . . . . Drone Launches . | . . . . Drone Recoveries . | . . . . Exploration | -11 -10 -9 -9 ------------- Run | Yrd Mat Mat Sto Turns Passed 1980 | 72 376 1356 176 Spaces Moved 1234 | 54 189 903 88 Core 421 | 28 . 305 88 Treads 323 | 26 189 108 . Legs . | . . . . Wheels . | . . . . Hover . | . . . . Flight 490 | . . 490 . Fastest Speed 37 | 50 160 37 100 Average Speed 94 | 121 160 78 100 Slowest Speed 160 | 160 160 160 100 Overloaded Moves . | . . . . Propulsion Burnouts . | . . . . Robots Hopped 6 | . . 6 . Potential Cave-ins . | . . . . Cave-ins Triggered . | . . . . Exploration Rate (%) 28 | 4 45 56 10 Regions Visited 3 Branch Regions 1 Pre-discovered Areas . | . . . . Known Exits Taken . | . . . . Unknown Exits Taken 3 | 1 1 1 . Scrap Searched . | . . . . Spaces Dug 8 | . 8 . . Terrain Destroyed 245 | . 61 184 . Melee . | . . . . Projectile 3 | . . 3 . AOE 242 | . 61 181 . Terrain Rammed . | . . . . Walls Destroyed . | . . . . Machines Disabled . | . . . . Actions | -11 -10 -9 -9 --------- Run | Yrd Mat Mat Sto Total 1783 | 61 228 1334 160 Wait 291 | . 8 227 56 Move 1219 | 53 188 890 88 Hop 6 | . . 6 . Pick Up 17 | 4 3 10 . Fast Attach 16 | . . 16 . Attach 15 | 4 3 8 . Detach 3 | . . 3 . Swap 7 | . . 6 1 Drop 11 | . . 11 . Fire 195 | . 23 157 15 Melee . | . . . . Ram . | . . . . Kick . | . . . . Crush 3 | . 3 . . Escape Stasis . | . . . . Rewire . | . . . . Trap . | . . . . Miscellaneous . | . . . . Route ------- -11/Scrapyard -10/Materials (discovered 2 exits: *Mat x2) -9/Materials -9/Storage History --------- Turn | Location | Event 16 | -11/Scrapyard | Discovered new exit (range 16) 73 | -11/Scrapyard | Entered Materials 275 | -10/Materials | Discovered new exit (range 13) 315 | -10/Materials | Build established: Mutant 387 | -10/Materials | Discovered new exit (range 15) 449 | -10/Materials | Entered another Materials area 449 | -9/Materials | Evolved 2 slots: Utility x2 1169 | -9/Materials | Discovered new exit (range 14) 1319 | -9/Materials | Core integrity fell below 50% 1398 | -9/Materials | Core integrity fell below 20% 1416 | -9/Materials | Lost 3 parts (1n1u1w) 1805 | -9/Materials | Entered Storage 1981 | -9/Storage | Destroyed by G-34 Mercenary with Small Laser Last Messages --------------- Acquired 3 matter. U-05 Engineer lays Concrete. Acquired 56 matter. U-05 Engineer lays Concrete. K-01 Serf collects debris. U-05 Engineer lays Concrete. K-01 Serf collects debris. LOCATION=UNKNOWN GOAL=ESCAPE Storage Shell breached. K-01 Serf collects debris. O-16 Technician: "IFF HANDSHAKE FAILED. SECURING TERMINAL." ALERT: Hostiles spotted, dispatching reinforcements to Terminal S015. G-47 Trooper destroyed. Imp. Light Cannon destroyed. G-34 Mercenary destroyed. Backup Plating I destroyed. U-05 Engineer destroyed. Map ----- +----------------------------------------------------+ | ?????????????????????????????????????????????????? | | ?????????????????????????????????????????????????? | | ?????????????????????????????????????????????????? | | ?????????????????????????????????????????????????? | | ?????????????????????????????????????????????????? | | ?????????????????????????????????????????????????? | | ?????????????????????????????????????????????????? | | ?????????????????????????????????????????????????? | | ?????????????????????????????????????????????????? | | ????????????????????? ???????????????????????????? | | ???????????????????! ""?????????????????????????? | | ??????????????????? ?????????????????????????? | | ??????????????????? ?????????????????????????? | | ??????????????????? ???????????????????????### | | ???????????????????# ??????????????????????? # | | ?????????????????#?# ???????????????????""""" # | | ????????????????? # #??????????????????"|!!" # | | ?????????????????? # #??????????????????"""" # | | ???????????????????+ #???????????????#?""""" # | | ???????????????????# #???????????????# "!==" # | | ???????????????????# #???????????????# "" "" # | | ???????????????????# #???????????????# # | | ???????????????##### !%[#???????????????# # | | ???????????????# + g%####################"##### | | ???????????????????# =!%= k | | ???????????????????# *!@ | | ???????????????????# | | ???????????????????############################### | | ?????????????????????????????????????????????????? | | ?????????????????????????????????????????????????? | | ?????????????????????????????????????????????????? | | ?????????????????????????????????????????????????? | | ?????????????????????????????????????????????????? | | | | | | | | | | | | | | | | | | | | | | | | | | | | | | | | | | | +----------------------------------------------------+ Best States ------------- Heat Dissipation 50 Energy Generation 14 Energy Capacity 280 Matter Stores 300 Matter Capacity 300 Sight Range 16 Terrain Scan Density 10 Additional Mass Support 6 Armor Coverage 80 Evasion (%) 62 Targeting Accuracy 11 Recoil Reduction 2 Item Schematics ----------------- None Robot Schematics ------------------ None Fabricated ------------ Nothing Repaired ---------- Nothing Alien Tech Used ----------------- None Achievements -------------- None Challenges ------------ None Game ------ Seed SniperGodAutocannon Manual? 0 Play Time 00:21:37 Cumulative 58.5 hours Start 2025.07.18 @ 09:44:49 End 2025.07.18 @ 10:05:08 Sessions 1 Manual Loads 0 Difficulty Rogue Special Mode None Game No. 252 Rogue 252 Adventurer 0 Explorer 0 Win Type - Total 0 Types 0/0/0/0/0/0/0/0/0/0 Lore% 38 Gallery% 30 Achievement% 25 Wizard Run 0 Options --------- Layout 2 ASCII 0 Keyboard 0 Movement Mouse Keybinds 0 Fullscreen 1 Font 24/Terminus Map View 50x44 Zoom Use 0% Tactical HUD 0 Map Filters NONE Filters NONE Steam 1 RUN: 448ed449-5103-47fe-9313-2aa3490557b6